[Event "Austrian Championship 2022"]
[Site "Vienna"]
[Date "2022.08.19"]
[Round "9.16"]
[White "Belke, Frank"]
[Black "Teuschler, Barbara"]
[Result "1-0"]
[ECO "E12"]
[WhiteElo "2226"]
[BlackElo "2097"]
[Annotator "TA"]
[PlyCount "157"]
[EventDate "2022.08.12"]
[EventType "swiss"]
[EventCountry "AUT"]
[SourceTitle "playchess.com"]
[Source "ChessBase"]
[SourceQuality "1"]
[TimeControl "40/5400+30:1800+30"]

{[%evp 18,156,13,5,22,20,20,19,27,19,21,18,35,20,40,0,14,15,10,7,28,16,51,38,35,33,30,27,27,0,0,-27,0,0,0,-24,-27,-17,-27,-38,-31,-25,-27,-31,-26,-43,-32,-29,-26,-48,-23,-25,0,0,33,25,37,25,124,29,27,29,45,58,59,62,89,64,110,85,56,0,0,-20,38,38,100,104,134,139,127,123,120,45,20,0,0,0,0,0,0,4,225,218,204,212,266,258,288,205,99,72,160,138,331,314,387,372,425,423,416,414,453,414,745,762,688,601,866,927,12835,2951,12839,12839,12839,1178,12840,12841,12840,12841,12841,12841,12841,12841,12847,12846,29995,12847,29996,29997,29999]} 1. d4 {[%emt 0:00:03]} Nf6 {[%emt 0:00:04]} 2. c4 {[%emt 0:00:02]} b6 {[%emt 0:00:03]} 3. Nc3 {[%emt 0:00:12]} Bb7 {[%emt 0:00:11]} 4. Qc2 {[%emt 0:00:23]} d5 {[%emt 0:00:31]} 5. Nf3 {[%emt 0:00:51]} e6 {[%emt 0:02:21]} 6. Bg5 {[%emt 0:00:06]} Be7 {[%emt 0:01:55]} 7. e3 {[%emt 0:00:36]} O-O {[%emt 0:03:31]} 8. a3 {[%emt 0:02:00]} Nbd7 {[%emt 0:05:06]} 9. cxd5 {[%emt 0:01:02]} exd5 {[%emt 0:06:05]} 10. Bd3 {[%emt 0:00:07]} h6 {[%emt 0:01:50] E12: Queen's Indian: Unusual White 4th moves, 4 a3, 4 Nc3 Bb7 5 a3 and 4 Nc3 Bb7 .} 11. Bh4 {[%emt 0:00:15]} c5 {[%emt 0:09:39]} 12. O-O {[%emt 0:00:18]} Re8 {[%emt 0:05:14] The position is equal.} 13. Rfd1 {[%emt 0:04:58] [#]} Nh5 $146 {[%emt 0:11:16]} ({Predecessor:} 13... Ne4 14. Nxe4 dxe4 15. Bxe4 Qc8 16. Bxb7 Qxb7 17. Bxe7 Rxe7 18. dxc5 Nxc5 19. Rac1 Rc7 {½-½ (27) Muralidharan,M (1399)-Saketh,B (1564) Madurai 2019}) 14. Bxe7 {[%emt 0:02:45]} Rxe7 {[%emt 0:01:25]} 15. Bb5 {[%emt 0:14:50]} c4 {[%emt 0:10:29]} 16. Qf5 {[%emt 0:03:11][%csl LRd5,LRh5]} (16. Bxd7 $5 Qxd7 17. Ne5 $11) 16... Nhf6 {[%emt 0:01:11]} 17. Ne5 {[%emt 0:01:10] Hoping for Nxd7.} Nb8 {[%emt 0:04:06]} 18. Ba4 {[%emt 0:04:12]} a6 {[%emt 0:00:24]} 19. Bc2 {[%emt 0:00:17]} Qc7 {[%emt 0:12:18]} 20. Qh3 {[%emt 0:06:52]} Nbd7 {[%emt 0:00:44]} 21. f4 {[%emt 0:00:05]} Nf8 {[%emt 0:05:02]} 22. Qf3 {[%emt 0:02:01]} Rd8 {[%emt 0:00:27]} 23. h3 {[%emt 0:00:42]} b5 {[%emt 0:04:48]} 24. Kh2 {[%emt 0:19:11]} N8d7 {[%emt 0:00:16]} 25. Rg1 {[%emt 0:05:01]} Nf8 {[%emt 0:00:56]} 26. g3 {[%emt 0:02:58]} (26. Qg3 {is more complex.} Ne8 27. Rae1 Nf6 28. Ra1) 26... Ne4 {[%emt 0:00:43]} 27. Bxe4 {[%emt 0:00:33]} dxe4 {[%emt 0:00:01]} 28. Qe2 {[%emt 0:00:02]} (28. Nxe4 $2 f5 29. Qe2 Bxe4 $19) 28... f6 {[%emt 0:00:30]} 29. Ng4 {[%emt 0:00:07]} Nd7 {[%emt 0:02:04]} 30. Nf2 {[%emt 0:01:12]} Nb6 {[%emt 0:01:16]} 31. Rac1 {[%emt 0:00:11]} Qd7 {[%emt 0:00:47]} 32. Qh5 {[%emt 0:02:19]} Qd6 {[%emt 0:03:19]} 33. Qg6 {[%emt 0:01:58]} Qe6 {[%emt 0:01:36]} 34. Qh5 {[%emt 0:04:25]} Rc8 {[%emt 0:01:20]} 35. g4 {[%emt 0:00:41]} Rf8 {[%emt 0:02:22]} 36. Rg3 {[%emt 0:02:20]} Rd7 {[%emt 0:02:00]} 37. Qc5 {[%emt 0:02:00]} Rc8 {[%emt 0:01:20]} (37... Nd5 $11 38. f5 (38. Nfxe4 f5 $11) 38... Qe8) 38. Qb4 {[%emt 0:00:24]} (38. f5 $16 Qc6 39. Qxc6 (39. Nfxe4 Qxc5 40. Nxc5 Rxc5 $16) (39. Ncxe4 Na4 $11) 39... Rxc6 40. Nfxe4) 38... Nd5 $11 {[%emt 0:00:24]} 39. Nxd5 {[%emt 0:00:06]} Rxd5 {[%emt 0:00:03]} 40. Nd1 {[%emt 0:02:32]} Rdd8 {[%emt 0:02:00]} 41. Nc3 {[%emt 0:33:57]} Qd6 {[%emt 0:04:53]} 42. h4 {[%emt 0:00:00]} Bc6 {[%emt 0:08:55]} (42... Qc7 $14 {was preferrable.}) 43. g5 {[%emt 0:00:00]} hxg5 {[%emt 0:01:08]} 44. hxg5 {[%emt 0:00:00]} (44. fxg5 $14 f5 45. Rf1) 44... f5 {[%emt 0:01:08]} 45. Rh3 {[%emt 0:00:00]} Ra8 {[%emt 0:00:21]} (45... Qxb4 $11 46. axb4 Kf7) 46. Qa5 $1 $14 {[%emt 0:00:00]} Be8 {[%emt 0:01:17]} (46... Rdb8 $14) 47. Kg3 $1 $16 {[%emt 0:00:00]} Rab8 {[%emt 0:01:11]} 48. Rch1 {[%emt 0:00:00] Strongly threatening Rh8+.} Qb6 {[%emt 0:00:10]} 49. Qb4 {[%emt 0:00:00] White threatens Qe7 and mate.} Qd6 {[%emt 0:00:33] Prevents Qe7.} 50. Rh8+ $40 {[%emt 0:00:00][%mdl 128] White mounts an attack. Dancing on a razor blade.} (50. g6 $1 $16 Qxg6+ 51. Kf2) 50... Kf7 $11 {[%emt 0:00:01]} 51. R8h7 {[%emt 0:00:00]} Qxb4 {[%emt 0:00:59]} 52. axb4 {[%emt 0:19:35]} a5 53. bxa5 {[%emt 0:00:00]} Ra8 {[%emt 0:00:01]} 54. R1h6 {[%emt 0:00:00] Rb6 is the strong threat.} Rxa5 $2 {[%emt 0:00:20]} (54... b4 $1 $11 55. Na2 c3) 55. Rb6 $18 {[%emt 0:00:00]} Kg8 {[%emt 0:01:10]} 56. Rh1 {[%emt 0:00:00]} Rda8 {[%emt 0:00:16] [#]} 57. Nd5 $1 {[%emt 0:00:00] Threatens to win with Ne7+.} R5a7 {[%emt 0:04:48] Against Ne7+} 58. g6 {[%emt 0:00:00] aiming for Re6.} Rd8 {[%emt 0:00:41]} 59. Nc3 {[%emt 0:00:00] White is more active.} Ra5 {[%emt 0:00:08] [#]} ({Better is} 59... Rda8) 60. Rh5 $1 $16 {[%emt 0:00:00]} Ra1 $2 {[%emt 0:01:21]} (60... b4 $16 {was necessary.}) 61. Rxf5 $18 {[%emt 0:00:00]} Rg1+ {[%emt 0:01:06]} 62. Kf2 {[%emt 0:00:00]} Rxg6 {[%emt 0:01:09]} 63. Rxg6 {[%emt 0:00:00]} Bxg6 {[%emt 0:00:01]} 64. Rxb5 {[%emt 0:00:00][%mdl 4096] Endgame KRB-KRN} Kf7 {[%emt 0:01:34]} 65. f5 {[%emt 0:00:00]} Bh7 {[%emt 0:00:23]} (65... Bh5 $142 66. Nxe4 Rd7) 66. Nxe4 {[%emt 0:00:00]} Ke7 {[%emt 0:00:53]} 67. Rb7+ {[%emt 0:00:00]} Kf8 {[%emt 0:00:01]} 68. Ng5 {[%emt 0:00:00]} Kg8 {[%emt 0:00:05]} 69. Ne6 {[%emt 0:00:00]} (69. e4 $142 Bxf5 70. exf5) 69... Rc8 {[%emt 0:00:59]} 70. e4 {[%emt 0:00:00]} Kh8 {[%emt 0:00:37]} 71. Rxg7 {[%emt 0:00:00]} (71. d5 $142 c3 72. bxc3 Rxc3 73. d6) 71... Rb8 {[%emt 0:01:15]} 72. Rc7 {[%emt 0:00:00]} Rxb2+ {[%emt 0:00:02]} 73. Ke3 {[%emt 0:00:00]} Rb3+ {[%emt 0:00:10]} 74. Kf4 {[%emt 0:00:00]} c3 {[%emt 0:00:20]} 75. f6 {[%emt 0:00:00]} c2 {[%emt 0:04:21]} 76. Rxc2 {[%emt 0:00:27]} Rb6 {[%emt 0:00:10]} 77. Rc8+ {[%emt 0:12:03]} Bg8 {[%emt 0:00:04]} 78. f7 {[%emt 0:00:00][%csl Gc8][%cal Rf7g8]} Rxe6 {[%emt 0:00:13]} 79. fxg8=Q# {[%emt 0:01:00] Weighted Error Value: White=0.12 (very precise) /Black=0.27 (precise)} 1-0

[Event "Austrian Championship 2022"]
[Site "Vienna"]
[Date "2022.08.19"]
[Round "9.17"]
[White "Miazhynski, Michael"]
[Black "Bauer, Thomas"]
[Result "1-0"]
[ECO "B22"]
[WhiteElo "1994"]
[BlackElo "2228"]
[Annotator "TA"]
[PlyCount "81"]
[EventDate "2022.08.12"]
[EventType "swiss"]
[EventCountry "AUT"]
[SourceTitle "playchess.com"]
[Source "ChessBase"]
[SourceQuality "1"]
[TimeControl "40/5400+30:1800+30"]

{[%evp 13,81,16,3,0,0,0,29,0,21,21,28,28,35,29,38,0,-5,-29,-20,-34,-31,-60,-36,-47,-60,-87,-77,-92,-97,-97,-90,-93,-91,-98,-68,-112,-83,-127,-93,-96,-82,-77,-59,-59,-64,-58,0,0,0,-51,0,0,0,0,65,-27,-33,-32,-19,-22,0,0,0,-9,478,468,479,473,437,406]} 1. e4 {[%emt 0:00:03][%cal Be2e4,Be4e5][%mdl 32]} c5 {[%emt 0:00:19]} 2. Nf3 {[%emt 0:00:07]} e6 {[%emt 0:00:10]} 3. c3 {[%emt 0:00:15]} Nf6 {[%emt 0:00:06]} 4. e5 {[%emt 0:00:04]} Nd5 {[%emt 0:00:08]} 5. d4 {[%emt 0:00:14]} cxd4 {[%emt 0:00:29]} 6. cxd4 {[%emt 0:00:09]} d6 {[%emt 0:00:05]} 7. a3 {[%emt 0:03:40]} Be7 {[%emt 0:01:52]} 8. Bd3 {[%emt 0:00:20] B22: Sicilian: 2 c3.} b6 {[%emt 0:12:00]} 9. O-O {[%emt 0:04:17]} O-O {[%emt 0:00:09]} 10. Re1 {[%emt 0:00:41] White has an edge.} (10. Qc2 $5 {[%cal Rd3h7]}) 10... Ba6 {[%emt 0:01:10]} 11. Be4 {[%emt 0:06:09]} Nd7 {[%emt 0:07:43] [#]} 12. Bxd5 $146 {[%emt 0:10:33]} ({Predecessor:} 12. exd6 Bxd6 13. Qb3 N7f6 14. Bg5 Be7 15. Bc2 Rc8 16. Ne5 h6 17. Bd2 Qc7 18. Rc1 {0-1 (86) Kharashkina,B (2137)-Trofimova,O (2261) Protvino 2001}) 12... exd5 {[%emt 0:00:39]} 13. Nc3 {[%emt 0:00:05]} Bb7 {[%emt 0:08:24]} 14. Qb3 {[%emt 0:01:00]} dxe5 {[%emt 0:00:50]} 15. Nxd5 {[%emt 0:02:39]} e4 {[%emt 0:05:27] And now ...Bxd5 would win.} 16. Nxe7+ {[%emt 0:35:07]} Qxe7 {[%emt 0:00:04]} 17. Ng5 {[%emt 0:02:19][%cal Og5e4]} Rad8 {[%emt 0:26:21]} (17... h6 18. Nxe4 $1 Bxe4 19. f3 $11) 18. f3 {[%emt 0:05:37][%cal Rg5e4]} Nf6 {[%emt 0:03:33]} 19. Bd2 {[%emt 0:14:55]} Qd7 {[%emt 0:05:24] ...h6 is the strong threat.} (19... Rxd4 $6 20. Bb4 Qe5 21. Nxe4 Rxe4 22. fxe4 $11) 20. Bb4 {[%emt 0:05:09]} Qb5 {[%emt 0:03:55]} 21. Qe3 {[%emt 0:01:38]} exf3 {[%emt 0:03:29]} 22. Nxf3 {[%emt 0:02:07]} ({Not} 22. Bxf8 $2 Ng4 23. Qf4 (23. a4 $2 Qxb2 24. Qxf3 Qxd4+ 25. Kh1 Bxf3 $19) 23... f2+ 24. Kh1 fxe1=Q+ 25. Rxe1 Rxf8 $19) 22... Rfe8 {[%emt 0:04:08]} 23. Qf4 {[%emt 0:02:14]} h6 {[%emt 0:06:00]} 24. Re5 {[%emt 0:01:27]} Qd3 {[%emt 0:03:43]} 25. Rae1 {[%emt 0:01:29]} Rxe5 {[%emt 0:02:40]} 26. dxe5 {[%emt 0:00:39]} Nd5 {[%emt 0:00:32]} 27. Qe4 {[%emt 0:00:28]} Nxb4 {[%emt 0:03:54]} 28. Qxb7 {[%emt 0:00:09]} Nc2 {[%emt 0:00:06]} 29. Rf1 {[%emt 0:00:30]} Ne3 {[%emt 0:00:35]} ({Black should play} 29... Nd4 $15 30. Nxd4 Qxd4+ 31. Rf2 Qd1+ 32. Rf1 Qd7) 30. Re1 $11 {[%emt 0:00:26]} Nc2 {[%emt 0:00:57]} (30... Rd7 $11 31. Qc6 Qd5 32. Qxd5 Nxd5) 31. Rf1 $1 $15 {[%emt 0:00:15]} Qe3+ {[%emt 0:00:23]} (31... Nd4 $15 32. Nxd4 Qxd4+ 33. Rf2 Qd1+ 34. Rf1 Qd4+ 35. Rf2 Qd1+ 36. Rf1 Qd7) 32. Kh1 $11 {[%emt 0:00:08]} Qe2 {[%emt 0:00:40]} 33. Rg1 {[%emt 0:01:06]} g6 {[%emt 0:00:32]} (33... Ne3 $11) 34. e6 {[%emt 0:00:59]} (34. Qxa7 $14 Rd1 35. Qb8+ Kg7 36. Rxd1 (36. Qxb6 Ne3 $15) 36... Qxd1+ 37. Ng1) 34... Qxe6 {[%emt 0:00:19]} 35. Qc7 {[%emt 0:00:20]} Rc8 {[%emt 0:00:38]} 36. Qxa7 {[%emt 0:00:01]} Qe3 {[%emt 0:00:32]} 37. Qd7 $40 {[%emt 0:00:45][%mdl 128] White attacks.} Re8 {[%emt 0:01:04]} 38. Rd1 {[%emt 0:00:42] [#]} Re6 $2 {[%emt 0:00:00][%mdl 8192]} (38... Ne1 $1 $11 {and Black stays safe.} 39. Ng1 Kg7) 39. Qc8+ $18 {[%emt 0:00:08] White is clearly winning.} Kh7 {[%emt 0:00:22]} 40. Qxc2 {[%emt 0:00:04]} Rf6 {[%emt 0:00:33]} 41. Rf1 {[%emt 0:31:16] Weighted Error Value: White=0.15 (very precise) /Black=0.35} 1-0

[Event "Austrian Championship 2022"]
[Site "Vienna"]
[Date "2022.08.19"]
[Round "9.18"]
[White "Miazhynski, Yuri"]
[Black "Hoegl, Emanuel"]
[Result "1/2-1/2"]
[ECO "B13"]
[WhiteElo "2166"]
[BlackElo "2094"]
[Annotator "TA"]
[PlyCount "100"]
[EventDate "2022.08.12"]
[EventType "swiss"]
[EventCountry "AUT"]
[SourceTitle "playchess.com"]
[Source "ChessBase"]
[SourceQuality "1"]
[TimeControl "40/5400+30:1800+30"]

{[%evp 11,100,10,13,0,16,0,0,11,8,0,39,43,36,30,31,31,33,6,16,0,23,0,0,0,0,0,0,0,0,-17,-23,-39,-18,-20,-20,-82,-83,-83,-79,-83,-80,-69,-69,-81,-80,-81,-81,-87,-69,-103,-103,-103,-103,-103,-103,-103,-103,-103,-103,-103,0,-109,-86,-95,-76,-76,0,-95,-78,-78,-80,-102,-64,-89,-56,-64,-64,-79,-56,-64,-56,-56,-56,-56,-56,-56,-56,-56,-56,-56,0]} 1. e4 {[%emt 0:00:04]} c6 {[%emt 0:00:03][%cal Bc7c6,Bc6d5][%mdl 32]} 2. d4 {[%emt 0:00:06]} d5 {[%emt 0:00:03]} 3. exd5 {[%emt 0:00:06]} cxd5 {[%emt 0:00:03]} 4. c4 {[%emt 0:00:06]} Nf6 {[%emt 0:00:04][%cal Bg8f6,Bf6e4,Be4c3][%mdl 32]} 5. Nc3 {[%emt 0:00:04]} Nc6 {[%emt 0:00:02]} 6. Nf3 {[%emt 0:00:09]} Bg4 {[%emt 0:00:05]} 7. Bg5 {[%emt 0:00:17] Strongly threatening Bxf6. B13: Caro-Kann: Exchange Variation and Panov-Botvinnik Attack.} Ne4 {[%emt 0:30:45]} 8. cxd5 {[%emt 0:01:20]} (8. Be3 {seems wilder.} e5 9. cxd5 Nxc3 10. bxc3 Qxd5 11. Be2) 8... Nxc3 {[%emt 0:09:26][%mdl 64] [#] Remove Defender} 9. bxc3 {[%emt 0:03:20] The position is equal.} Qxd5 {[%emt 0:00:16]} 10. Qb3 {[%emt 0:04:25]} Qxb3 {[%emt 0:15:04]} 11. axb3 {[%emt 0:00:47]} Bxf3 {[%emt 0:10:43]} 12. gxf3 {[%emt 0:00:23]} e6 {[%emt 0:00:25] [#]} 13. Rg1 $146 {[%emt 0:17:47]} ({Predecessor:} 13. Bb5 Kd7 14. O-O a6 15. d5 exd5 16. Rfd1 Bd6 17. Rxd5 axb5 18. Rad1 Kc8 19. Rxd6 f6 20. Bf4 Rd8 21. Rxd8+ Nxd8 22. Rd5 Ne6 23. Bg3 Ra1+ 24. Kg2 Rc1 {½-½ (24) Kraus,T (2466)-Neuman,P (2394) Prague 2021}) 13... Bd6 {[%emt 0:03:08]} 14. h3 {[%emt 0:01:34]} g6 {[%emt 0:09:00]} 15. Bb5 {[%emt 0:18:04]} O-O {[%emt 0:00:15]} 16. Bxc6 {[%emt 0:00:23]} bxc6 {[%emt 0:00:04]} 17. Ra6 {[%emt 0:00:08]} Rfb8 {[%emt 0:00:31]} 18. b4 {[%emt 0:03:57]} Rb6 {[%emt 0:00:19]} 19. Ra5 {[%emt 0:00:45]} Rb5 {[%emt 0:00:59]} 20. Rxb5 {[%emt 0:01:07]} cxb5 $11 {[%emt 0:00:05][%mdl 4096] Endgame KRB-KRB} 21. Ke2 {[%emt 0:00:30]} a5 {[%emt 0:01:53]} (21... Rc8 $5 {[%cal Rc8c3]}) 22. bxa5 {[%emt 0:01:01]} Rxa5 {[%emt 0:00:04]} 23. Rb1 {[%emt 0:00:27] [#]} (23. Bd2 $11 {keeps the balance.}) 23... b4 $1 $17 {[%emt 0:08:08]} 24. Bd2 {[%emt 0:00:35]} bxc3 {[%emt 0:00:55]} 25. Bxc3 {[%emt 0:00:02]} Rd5 {[%emt 0:00:42]} 26. Ra1 {[%emt 0:03:17]} Be7 {[%emt 0:01:13]} 27. Ra8+ {[%emt 0:00:50]} Kg7 {[%emt 0:00:04]} 28. Ra5 {[%emt 0:00:12]} Rxa5 {[%emt 0:01:10]} 29. Bxa5 {[%emt 0:00:02] KB-KB} Kf6 {[%emt 0:00:34]} 30. Bb6 {[%emt 0:07:56]} Kf5 {[%emt 0:01:13]} 31. Ba7 {[%emt 0:00:54]} Kg5 {[%emt 0:01:17] ...Kh4 is the strong threat.} 32. Kf1 {[%emt 0:00:08]} Bd8 {[%emt 0:00:38]} 33. Bc5 {[%emt 0:00:13]} Bc7 {[%emt 0:00:29]} 34. Ba7 {[%emt 0:00:18]} Kf6 {[%emt 0:03:26]} 35. Bc5 {[%emt 0:00:29]} Kg5 {[%emt 0:00:33]} 36. Ba7 $1 {[%emt 0:00:33]} h5 {[%emt 0:02:26]} 37. Bc5 {[%emt 0:00:08]} Kh4 {[%emt 0:00:42]} 38. Kg2 {[%emt 0:00:14]} Kg5 {[%emt 0:00:15]} 39. Kf1 $1 {[%emt 0:00:06]} Bb8 {[%emt 0:00:52]} 40. Bb6 {[%emt 0:00:28]} Kf6 {[%emt 0:00:53]} 41. Bd8+ {[%emt 0:30:18]} Kg7 {[%emt 0:05:52]} 42. Bb6 {[%emt 0:00:00] Against Ba7} Kf8 {[%emt 0:01:09]} 43. Ke2 {[%emt 0:00:00]} Ke7 {[%emt 0:00:04]} 44. Ke3 {[%emt 0:00:00]} Kd6 {[%emt 0:00:05]} 45. Ke4 {[%emt 0:00:00] Black is slightly better.} Kc6 {[%emt 0:00:31]} 46. Bd8 {[%emt 0:00:00]} f5+ {[%emt 0:00:29]} 47. Kd3 {[%emt 0:00:00]} Kd5 {[%emt 0:00:18]} 48. Bf6 {[%emt 0:00:00]} Bc7 {[%emt 0:01:58]} 49. Be7 {[%emt 0:00:00]} Bh2 {[%emt 0:03:04]} 50. Bf6 {[%emt 0:00:00]} Bc7 {[%emt 0:02:18] Weighted Error Value: White=0.09 (flawless) /Black=0.10 (very precise)} (50... Bb8 $15) 1/2-1/2

[Event "Austrian Championship 2022"]
[Site "Vienna"]
[Date "2022.08.19"]
[Round "9.19"]
[White "Pilshofer, Paul"]
[Black "Froewis, Annika"]
[Result "1-0"]
[ECO "E05"]
[WhiteElo "2223"]
[BlackElo "2044"]
[Annotator "TA"]
[PlyCount "67"]
[EventDate "2022.08.12"]
[EventType "swiss"]
[EventCountry "AUT"]
[SourceTitle "playchess.com"]
[Source "ChessBase"]
[SourceQuality "1"]
[TimeControl "40/5400+30:1800+30"]

{[%evp 15,67,-30,-27,-40,-31,-31,-31,-24,-26,-29,0,-48,-46,-71,-49,-50,-19,-65,64,75,79,51,69,50,79,97,72,87,158,58,140,142,429,429,490,491,424,455,405,215,509,449,889,865,1320,1300,1274,1259,1253,1241,5536,5460,29995,29995]} 1. d4 {[%emt 0:01:52]} d5 {[%emt 0:00:05]} 2. Nf3 {[%emt 0:00:08]} Nf6 {[%emt 0:00:09]} 3. g3 {[%emt 0:00:16]} e6 {[%emt 0:00:06]} 4. c4 {[%emt 0:00:02]} Be7 {[%emt 0:00:31]} 5. Bg2 {[%emt 0:00:17]} O-O {[%emt 0:00:29]} 6. O-O {[%emt 0:00:20]} dxc4 {[%emt 0:00:09]} 7. Nc3 {[%emt 0:00:08]} Nc6 {[%emt 0:02:23]} 8. e4 {[%emt 0:00:20]} a6 {[%emt 0:02:07]} 9. Qe2 {[%emt 0:01:17] E05: Open Catalan: 5 Nf3 Be7.} b5 {[%emt 0:00:39]} 10. Rd1 {[%emt 0:00:51]} Nb4 {[%emt 0:07:02] Prevents d5.} 11. Ne1 {[%emt 0:04:46] Black is slightly better.} Bb7 {[%emt 0:03:28]} 12. Bf4 {[%emt 0:01:25] [#]} Qc8 $146 {[%emt 0:04:11]} ({Predecessor:} 12... Re8 13. b3 cxb3 14. axb3 Qd7 15. Rac1 Red8 16. g4 g6 17. Bf3 Rac8 18. g5 Ne8 {½-½ (37) Dimitrov,D (2367)-Dimitrov,D (2290) ICCF email 2010}) 13. a3 {[%emt 0:02:15]} (13. Bh3 $11 {might be stronger.}) 13... Nc6 $15 {[%emt 0:03:50]} 14. e5 {[%emt 0:01:33]} Nd7 {[%emt 0:08:42]} 15. d5 {[%emt 0:02:16]} Na5 {[%emt 0:04:01]} 16. a4 {[%emt 0:31:38]} (16. Qg4 $11 {feels stronger.}) 16... c6 {[%emt 0:18:21]} (16... b4 $1 $15 17. dxe6 fxe6 18. Bxb7 Nxb7) 17. dxe6 $14 {[%emt 0:08:34]} fxe6 {[%emt 0:00:23]} 18. axb5 {[%emt 0:05:47]} axb5 {[%emt 0:01:06]} 19. Ne4 $36 {[%emt 0:03:10][%mdl 2048] White is pushing.} Nc5 {[%emt 0:15:17]} 20. Nd6 {[%emt 0:09:53][%mdl 1024] White has strong compensation. White is more active.} Qc7 {[%emt 0:02:47]} 21. Qg4 {[%emt 0:06:27][%cal Oa1a5] And now Rxa5! would win.} Kh8 {[%emt 0:04:47]} (21... Nab3 $142 22. Rxa8 Bxa8) 22. Qh5 {[%emt 0:06:44]} (22. Be3 $16 Nab3 23. Rxa8 Bxa8 24. Nf3) 22... g6 {[%emt 0:05:37]} ({Better is} 22... Nab3 $14 23. Rxa8 Bxa8) 23. Qh3 $16 {[%emt 0:02:51]} Bxd6 $4 {[%emt 0:08:23][%mdl 8192] [#] This move loses the game for Black.} (23... Rad8 $16 {keeps fighting.}) 24. exd6 $18 {[%emt 0:00:30]} Qd7 {[%emt 0:00:53]} 25. Nf3 {[%emt 0:05:49]} Kg8 {[%emt 0:05:31]} 26. Ne5 {[%emt 0:00:18] Inhibits Nd3.} Qg7 {[%emt 0:01:08]} 27. Ng4 {[%emt 0:00:46]} (27. Qg4 $142) 27... Nd7 $2 {[%emt 0:01:04]} (27... h5) 28. Bd2 {[%emt 0:00:49] A strong pair of Bishops.} Nb3 {[%emt 0:00:18]} (28... h5 $142 29. Nh6+ (29. Rxa5 hxg4 30. Qxg4 Qf6 $18) 29... Kh7 30. Rxa5 Rxa5) 29. Rxa8 {[%emt 0:00:17]} Bxa8 {[%emt 0:00:31]} 30. Bc3 {[%emt 0:00:03]} e5 {[%emt 0:00:10] [#]} 31. Nxe5 $1 {[%emt 0:00:23][%mdl 576] Decoy} Nxe5 {[%emt 0:00:20]} 32. Qe6+ {[%emt 0:00:08]} Qf7 {[%emt 0:00:31]} 33. Qxe5 {[%emt 0:00:08][%csl Gc3][%cal Re5h8]} Qd7 {[%emt 0:01:11]} 34. Bh3 {[%emt 0:00:17] Weighted Error Value: White=0.20 (precise) /Black=0.83} 1-0